[Event "Early-Titled-Tuesday-Blitz-October-03-2023"]
[Site "Chess.com"]
[Date "2023.10.03"]
[Round "7"]
[White "betta2004"]
[Black "EvgenyBurmakin"]
[Result "1/2-1/2"]
[WhiteElo "2521"]
[BlackElo "2342"]
[TimeControl "180+1"]
[EndTime "9:20:11 PDT"]
[Termination "Game drawn by stalemate"]

1. d4 {[%clk 0:03:00.9]} 1... Nf6 {[%clk 0:02:59.1]} 2. Nc3 {[%clk 0:03:01.8]}
2... g6 {[%clk 0:02:59.4]} 3. e4 {[%clk 0:02:57.8]} 3... d6 {[%clk 0:02:59.7]}
4. Bf4 {[%clk 0:02:56.2]} 4... Bg7 {[%clk 0:02:59.7]} 5. Qd2 {[%clk 0:02:51.3]}
5... Nc6 {[%clk 0:02:54.9]} 6. O-O-O {[%clk 0:02:48.1]} 6... d5 {[%clk
0:02:42.4]} 7. e5 {[%clk 0:02:44.3]} 7... Ne4 {[%clk 0:02:38]} 8. Nxe4 {[%clk
0:02:43.2]} 8... dxe4 {[%clk 0:02:38.9]} 9. Bb5 {[%clk 0:02:42.8]} 9... O-O
{[%clk 0:02:35.2]} 10. h4 {[%clk 0:02:32.9]} 10... h5 {[%clk 0:02:31.9]} 11. Qe3
{[%clk 0:02:29.2]} 11... Bg4 {[%clk 0:02:19.4]} 12. Rd2 {[%clk 0:02:24.3]} 12...
Nb4 {[%clk 0:02:14.1]} 13. Bc4 {[%clk 0:02:06.4]} 13... b5 {[%clk 0:02:10.6]}
14. Bb3 {[%clk 0:01:55.4]} 14... a5 {[%clk 0:02:08.3]} 15. d5 {[%clk 0:01:46.8]}
15... a4 {[%clk 0:02:05.4]} 16. Kb1 {[%clk 0:01:38.7]} 16... axb3 {[%clk
0:01:58.6]} 17. Qxb3 {[%clk 0:01:39.6]} 17... Rxa2 {[%clk 0:01:27.4]} 18. Qxb4
{[%clk 0:01:37.4]} 18... Qa8 {[%clk 0:01:27.3]} 19. c3 {[%clk 0:01:36.9]} 19...
e3 {[%clk 0:01:23.5]} 20. fxe3 {[%clk 0:01:35.5]} 20... Bf5+ {[%clk 0:01:14.2]}
21. e4 {[%clk 0:01:33.6]} 21... Ra4 {[%clk 0:01:12.1]} 22. exf5 {[%clk
0:01:31.6]} 22... Rxb4 {[%clk 0:01:11.5]} 23. cxb4 {[%clk 0:01:32.5]} 23... Rd8
{[%clk 0:00:57.5]} 24. fxg6 {[%clk 0:01:22.7]} 24... fxg6 {[%clk 0:00:57.2]} 25.
Nf3 {[%clk 0:01:22]} 25... Rxd5 {[%clk 0:00:56]} 26. Rc2 {[%clk 0:01:15]} 26...
Rd8 {[%clk 0:00:46]} 27. Re1 {[%clk 0:01:13.6]} 27... Qa4 {[%clk 0:00:30.8]} 28.
Bd2 {[%clk 0:00:57.4]} 28... Qb3 {[%clk 0:00:12.8]} 29. Rxc7 {[%clk 0:00:43]}
29... Qd3+ {[%clk 0:00:12.7]} 30. Kc1 {[%clk 0:00:34.2]} 30... Ra8 {[%clk
0:00:12.5]} 31. b3 {[%clk 0:00:28.8]} 31... Ra1+ {[%clk 0:00:07.8]} 32. Kb2
{[%clk 0:00:29.1]} 32... Rxe1 {[%clk 0:00:07.3]} 33. Bxe1 {[%clk 0:00:27.1]}
33... Bxe5+ {[%clk 0:00:05]} 34. Nxe5 {[%clk 0:00:20.4]} 34... Qe2+ {[%clk
0:00:05.1]} 35. Rc2 {[%clk 0:00:20.5]} 35... Qxe1 {[%clk 0:00:05.2]} 36. Nxg6
{[%clk 0:00:14.4]} 36... Kf7 {[%clk 0:00:03.7]} 37. Nf4 {[%clk 0:00:09.1]} 37...
Qe5+ {[%clk 0:00:03.7]} 38. Rc3 {[%clk 0:00:09.6]} 38... Qxf4 {[%clk 0:00:04.3]}
39. Rf3 {[%clk 0:00:10]} 39... e5 {[%clk 0:00:04.2]} 40. Rxf4+ {[%clk 0:00:05]}
40... exf4 {[%clk 0:00:05.1]} 41. Kc3 {[%clk 0:00:05.7]} 41... Kf6 {[%clk
0:00:05.7]} 42. Kd4 {[%clk 0:00:05.8]} 42... Kf5 {[%clk 0:00:06.1]} 43. Kd5
{[%clk 0:00:04.8]} 43... Kg4 {[%clk 0:00:06.7]} 44. Ke4 {[%clk 0:00:05.2]} 44...
Kg3 {[%clk 0:00:04.3]} 45. Kf5 {[%clk 0:00:04.5]} 45... Kxh4 {[%clk 0:00:03.1]}
46. Kxf4 {[%clk 0:00:03.4]} 1/2-1/2

[Event "Early-Titled-Tuesday-Blitz-October-03-2023"]
[Site "Chess.com"]
[Date "2023.10.03"]
[Round "7"]
[White "BardArtem"]
[Black "ContrVersia"]
[Result "0-1"]
[WhiteElo "2768"]
[BlackElo "2898"]
[TimeControl "180+1"]
[EndTime "9:20:12 PDT"]
[Termination "ContrVersia won by resignation"]

1. e4 {[%clk 0:03:00.9]} 1... c5 {[%clk 0:02:59.9]} 2. Nf3 {[%clk 0:02:59.2]}
2... a6 {[%clk 0:03:00.3]} 3. c3 {[%clk 0:02:59.4]} 3... d5 {[%clk 0:03:00.4]}
4. exd5 {[%clk 0:03:00.3]} 4... Qxd5 {[%clk 0:03:00.9]} 5. d4 {[%clk 0:03:00.9]}
5... Bg4 {[%clk 0:03:01.5]} 6. Be2 {[%clk 0:02:59.1]} 6... Nf6 {[%clk
0:03:01.7]} 7. dxc5 {[%clk 0:02:54.4]} 7... Qxc5 {[%clk 0:03:01.4]} 8. h3 {[%clk
0:02:51]} 8... Bh5 {[%clk 0:03:01.3]} 9. Be3 {[%clk 0:02:50.5]} 9... Qc7 {[%clk
0:03:01.4]} 10. Na3 {[%clk 0:02:50.7]} 10... e6 {[%clk 0:03:00.9]} 11. O-O
{[%clk 0:02:43.1]} 11... Bxa3 {[%clk 0:03:00]} 12. Qa4+ {[%clk 0:02:42.8]} 12...
Nc6 {[%clk 0:02:53]} 13. Qxa3 {[%clk 0:02:42.9]} 13... Nd5 {[%clk 0:02:53.4]}
14. Bd2 {[%clk 0:02:22.8]} 14... O-O-O {[%clk 0:02:38.8]} 15. Rad1 {[%clk
0:02:17.3]} 15... Nf4 {[%clk 0:02:34.5]} 16. Bxf4 {[%clk 0:02:14.7]} 16... Qxf4
{[%clk 0:02:35.4]} 17. Qc5 {[%clk 0:02:12.4]} 17... f5 {[%clk 0:02:07.5]} 18.
Rfe1 {[%clk 0:01:09.8]} 18... Kb8 {[%clk 0:01:45.6]} 19. b4 {[%clk 0:01:09.3]}
19... Rxd1 {[%clk 0:01:21]} 20. Rxd1 {[%clk 0:01:10.2]} 20... Rc8 {[%clk
0:01:14.7]} 21. Qd6+ {[%clk 0:01:03.7]} 21... Qxd6 {[%clk 0:01:14.2]} 22. Rxd6
{[%clk 0:01:04.6]} 22... Re8 {[%clk 0:01:04.5]} 23. g4 {[%clk 0:00:44.8]} 23...
fxg4 {[%clk 0:01:00.3]} 24. Ng5 {[%clk 0:00:44.7]} 24... h6 {[%clk 0:00:47.1]}
25. Nxe6 {[%clk 0:00:32.5]} 25... Bf7 {[%clk 0:00:46.6]} 26. Bxg4 {[%clk
0:00:32]} 26... h5 {[%clk 0:00:46.8]} 27. Bf5 {[%clk 0:00:23.5]} 27... g6 {[%clk
0:00:46.8]} 28. Ng5 {[%clk 0:00:23.3]} 28... Re5 {[%clk 0:00:31.5]} 29. Nxf7
{[%clk 0:00:13.8]} 29... Rxf5 {[%clk 0:00:31.8]} 30. Nh8 {[%clk 0:00:03.7]}
30... g5 {[%clk 0:00:30.3]} 31. Ng6 {[%clk 0:00:03.8]} 31... Kc7 {[%clk
0:00:25.7]} 32. Rd1 {[%clk 0:00:03.8]} 32... Rf6 {[%clk 0:00:24.6]} 33. Nh8
{[%clk 0:00:04.1]} 33... Ne5 {[%clk 0:00:23]} 34. Kg2 {[%clk 0:00:02.6]} 34...
Kc6 {[%clk 0:00:21.2]} 35. a4 {[%clk 0:00:02]} 35... Rf8 {[%clk 0:00:18.5]} 36.
b5+ {[%clk 0:00:01.9]} 36... axb5 {[%clk 0:00:19.3]} 37. axb5+ {[%clk
0:00:02.8]} 37... Kc5 {[%clk 0:00:20]} 38. Re1 {[%clk 0:00:03.3]} 38... Rf5
{[%clk 0:00:18.8]} 39. Re4 {[%clk 0:00:02.1]} 39... Kd5 {[%clk 0:00:18.3]} 40.
Rd4+ {[%clk 0:00:01.9]} 40... Ke6 {[%clk 0:00:19.1]} 41. Rd8 {[%clk 0:00:02.5]}
41... Rf6 {[%clk 0:00:17.1]} 42. Re8+ {[%clk 0:00:02.5]} 42... Kf5 {[%clk
0:00:16.4]} 43. Rb8 {[%clk 0:00:02.4]} 43... b6 {[%clk 0:00:16.6]} 44. Rb7
{[%clk 0:00:02.2]} 44... h4 {[%clk 0:00:16.4]} 45. f3 {[%clk 0:00:02.2]} 45...
Rf8 {[%clk 0:00:08.9]} 46. Rh7 {[%clk 0:00:01.4]} 46... Nd3 {[%clk 0:00:08.6]}
47. Rh6 {[%clk 0:00:01.6]} 47... Nf4+ {[%clk 0:00:08.6]} 48. Kh2 {[%clk
0:00:01.6]} 48... Re8 {[%clk 0:00:08.1]} 49. Rh5 {[%clk 0:00:01.2]} 49... Nxh5
{[%clk 0:00:07.7]} 0-1

[Event "Early-Titled-Tuesday-Blitz-October-03-2023"]
[Site "Chess.com"]
[Date "2023.10.03"]
[Round "7"]
[White "Abund"]
[Black "BilodeauA"]
[Result "1-0"]
[WhiteElo "2789"]
[BlackElo "2904"]
[TimeControl "180+1"]
[EndTime "9:20:21 PDT"]
[Termination "Abund won by resignation"]

1. e4 {[%clk 0:03:00.9]} 1... Nc6 {[%clk 0:02:57.4]} 2. Nf3 {[%clk 0:02:59.3]}
2... e5 {[%clk 0:02:56.2]} 3. Bb5 {[%clk 0:02:57.9]} 3... a6 {[%clk 0:02:56.2]}
4. Ba4 {[%clk 0:02:58.2]} 4... d6 {[%clk 0:02:56.8]} 5. Nc3 {[%clk 0:02:57.3]}
5... Bd7 {[%clk 0:02:56.1]} 6. Bxc6 {[%clk 0:02:55.2]} 6... bxc6 {[%clk
0:02:51.5]} 7. d4 {[%clk 0:02:55.4]} 7... f6 {[%clk 0:02:52.2]} 8. Be3 {[%clk
0:02:53]} 8... Ne7 {[%clk 0:02:50.9]} 9. Qd3 {[%clk 0:02:52.1]} 9... Ng6 {[%clk
0:02:50.4]} 10. O-O-O {[%clk 0:02:51.7]} 10... Be7 {[%clk 0:02:49.6]} 11. h4
{[%clk 0:02:45]} 11... h5 {[%clk 0:02:48.8]} 12. dxe5 {[%clk 0:02:36.1]} 12...
fxe5 {[%clk 0:02:45]} 13. Ng5 {[%clk 0:02:14.3]} 13... Nxh4 {[%clk 0:02:41.6]}
14. Rxh4 {[%clk 0:01:59.4]} 14... Bxg5 {[%clk 0:02:40.3]} 15. Rhh1 {[%clk
0:01:57.9]} 15... Qf6 {[%clk 0:02:33.1]} 16. Kb1 {[%clk 0:01:56.3]} 16... Bxe3
{[%clk 0:02:13.6]} 17. Qxe3 {[%clk 0:01:56.2]} 17... O-O {[%clk 0:02:13.9]} 18.
f3 {[%clk 0:01:34.4]} 18... g6 {[%clk 0:02:03.9]} 19. b3 {[%clk 0:01:20.1]}
19... Kg7 {[%clk 0:02:03.5]} 20. Ne2 {[%clk 0:01:14.3]} 20... Be6 {[%clk
0:02:01]} 21. Rdf1 {[%clk 0:01:09.1]} 21... a5 {[%clk 0:01:51.7]} 22. g4 {[%clk
0:01:09.2]} 22... Rh8 {[%clk 0:01:34]} 23. gxh5 {[%clk 0:00:59.5]} 23... gxh5
{[%clk 0:01:34.4]} 24. f4 {[%clk 0:00:59.4]} 24... Bg4 {[%clk 0:01:33.7]} 25.
fxe5 {[%clk 0:00:52.3]} 25... Qxe5 {[%clk 0:01:34.6]} 26. Nd4 {[%clk 0:00:52.5]}
26... Rae8 {[%clk 0:01:21.9]} 27. Nxc6 {[%clk 0:00:43.5]} 27... Qxe4 {[%clk
0:01:20.6]} 28. Qc3+ {[%clk 0:00:35.5]} 28... Kg8 {[%clk 0:01:18.5]} 29. Re1
{[%clk 0:00:32.4]} 29... Qg6 {[%clk 0:00:50]} 30. Ne7+ {[%clk 0:00:29.3]} 30...
Rxe7 {[%clk 0:00:50.4]} 31. Rxe7 {[%clk 0:00:30]} 31... Rh7 {[%clk 0:00:48.8]}
32. Qxc7 {[%clk 0:00:26.4]} 32... Rxe7 {[%clk 0:00:45.6]} 33. Qxe7 {[%clk
0:00:27.3]} 33... Bf5 {[%clk 0:00:33.9]} 34. Qe2 {[%clk 0:00:22.2]} 34... Bg4
{[%clk 0:00:32.7]} 35. Qf2 {[%clk 0:00:20.7]} 35... Kh7 {[%clk 0:00:32]} 36. Re1
{[%clk 0:00:20.4]} 36... Qf5 {[%clk 0:00:32.3]} 37. Qh4 {[%clk 0:00:19]} 37...
Kg6 {[%clk 0:00:31.3]} 38. Qe7 {[%clk 0:00:18.2]} 38... Qf6 {[%clk 0:00:30.3]}
39. Qe4+ {[%clk 0:00:17.1]} 39... Qf5 {[%clk 0:00:26.3]} 40. Qd4 {[%clk
0:00:16.4]} 40... Qf6 {[%clk 0:00:25]} 41. Qd3+ {[%clk 0:00:16]} 41... Kg5
{[%clk 0:00:22.7]} 42. Qd2+ {[%clk 0:00:15.9]} 42... Qf4 {[%clk 0:00:20.6]} 43.
Qxa5+ {[%clk 0:00:16.1]} 43... Kh4 {[%clk 0:00:18.3]} 44. a4 {[%clk 0:00:14.2]}
44... Kg3 {[%clk 0:00:17.5]} 45. Qc3+ {[%clk 0:00:13.9]} 45... Kg2 {[%clk
0:00:16.9]} 46. a5 {[%clk 0:00:12.7]} 46... h4 {[%clk 0:00:16]} 47. a6 {[%clk
0:00:12.7]} 47... h3 {[%clk 0:00:16.5]} 48. a7 {[%clk 0:00:11.8]} 48... Bf3
{[%clk 0:00:17.2]} 49. Qg7+ {[%clk 0:00:11.7]} 49... Qg3 {[%clk 0:00:10.8]} 50.
Qxg3+ {[%clk 0:00:11.4]} 50... Kxg3 {[%clk 0:00:10.5]} 51. Re3 {[%clk
0:00:09.6]} 51... h2 {[%clk 0:00:10]} 52. Rxf3+ {[%clk 0:00:10]} 52... Kg2
{[%clk 0:00:10.6]} 53. a8=Q {[%clk 0:00:09.5]} 53... h1=Q+ {[%clk 0:00:09.8]}
54. Kb2 {[%clk 0:00:10]} 54... Kg1 {[%clk 0:00:09.5]} 55. Rf1+ {[%clk
0:00:09.4]} 1-0

[Event "Early-Titled-Tuesday-Blitz-October-03-2023"]
[Site "Chess.com"]
[Date "2023.10.03"]
[Round "7"]
[White "crazy_m_attack"]
[Black "MajorCoast"]
[Result "1-0"]
[WhiteElo "2407"]
[BlackElo "2255"]
[TimeControl "180+1"]
[EndTime "9:20:21 PDT"]
[Termination "crazy_m_attack won on time"]

1. e4 {[%clk 0:03:00.6]} 1... c5 {[%clk 0:02:58.8]} 2. Nf3 {[%clk 0:03:00.5]}
2... e6 {[%clk 0:02:59]} 3. d4 {[%clk 0:03:00.7]} 3... cxd4 {[%clk 0:02:59.9]}
4. Nxd4 {[%clk 0:03:00.4]} 4... Qb6 {[%clk 0:03:00]} 5. Nc3 {[%clk 0:02:58.3]}
5... Nc6 {[%clk 0:02:56.6]} 6. Nb3 {[%clk 0:02:54.8]} 6... Bb4 {[%clk
0:02:55.1]} 7. Be3 {[%clk 0:02:53.8]} 7... Bxc3+ {[%clk 0:02:42.4]} 8. bxc3
{[%clk 0:02:53.3]} 8... Qc7 {[%clk 0:02:42.7]} 9. Bd3 {[%clk 0:02:47.7]} 9...
Nf6 {[%clk 0:02:38.3]} 10. O-O {[%clk 0:02:42.5]} 10... O-O {[%clk 0:02:36.8]}
11. Qd2 {[%clk 0:02:38.8]} 11... d5 {[%clk 0:02:34.3]} 12. exd5 {[%clk
0:02:33.6]} 12... Nxd5 {[%clk 0:02:34.5]} 13. Bg5 {[%clk 0:02:17.5]} 13... Ne5
{[%clk 0:02:28]} 14. Rfe1 {[%clk 0:01:25.9]} 14... Nxd3 {[%clk 0:02:11.2]} 15.
cxd3 {[%clk 0:01:24.4]} 15... Qxc3 {[%clk 0:02:08.2]} 16. Qe2 {[%clk 0:01:23.9]}
16... Bd7 {[%clk 0:02:02.2]} 17. Rac1 {[%clk 0:01:20.6]} 17... Qb4 {[%clk
0:02:01.3]} 18. Nc5 {[%clk 0:01:15.7]} 18... Bc6 {[%clk 0:01:41.4]} 19. Ne4
{[%clk 0:00:53.6]} 19... Qd4 {[%clk 0:01:29.9]} 20. Qf3 {[%clk 0:00:52.4]} 20...
Nb4 {[%clk 0:01:10.7]} 21. Rc4 {[%clk 0:00:47.5]} 21... Bxe4 {[%clk 0:00:56.1]}
22. Rxe4 {[%clk 0:00:30.6]} 22... Qa1+ {[%clk 0:00:34.6]} 23. Rc1 {[%clk
0:00:30.7]} 23... Qb2 {[%clk 0:00:32.1]} 24. Qg3 {[%clk 0:00:13.3]} 24... Rac8
{[%clk 0:00:26.1]} 25. Rd1 {[%clk 0:00:11.9]} 25... Nxa2 {[%clk 0:00:15.1]} 26.
Rde1 {[%clk 0:00:04]} 26... Nc3 {[%clk 0:00:14.3]} 27. Bf6 {[%clk 0:00:03.4]}
27... Ne2+ {[%clk 0:00:12.5]} 28. R4xe2 {[%clk 0:00:03.4]} 28... Qxf6 {[%clk
0:00:12.7]} 29. h3 {[%clk 0:00:03.2]} 29... Rc3 {[%clk 0:00:11.4]} 30. Rb1
{[%clk 0:00:02.1]} 30... b6 {[%clk 0:00:11.2]} 31. Qe3 {[%clk 0:00:02.2]} 31...
h6 {[%clk 0:00:09.2]} 32. Rd2 {[%clk 0:00:02.4]} 32... Rfc8 {[%clk 0:00:08.8]}
33. Rdd1 {[%clk 0:00:02.5]} 33... Rc2 {[%clk 0:00:08.1]} 34. Ra1 {[%clk
0:00:03]} 34... a5 {[%clk 0:00:07.4]} 35. Qxb6 {[%clk 0:00:03]} 35... R2c6
{[%clk 0:00:04.3]} 36. Qe3 {[%clk 0:00:02.9]} 36... Rc5 {[%clk 0:00:02.9]} 37.
d4 {[%clk 0:00:03.1]} 37... Rc3 {[%clk 0:00:02.7]} 38. Qe4 {[%clk 0:00:02]}
38... Rc2 {[%clk 0:00:02.5]} 39. Rf1 {[%clk 0:00:01.8]} 39... Qg5 {[%clk
0:00:02.3]} 40. f4 {[%clk 0:00:01.5]} 40... Qg3 {[%clk 0:00:01.6]} 41. Rxa5
{[%clk 0:00:01.6]} 41... Rb2 {[%clk 0:00:01]} 42. Rc5 {[%clk 0:00:01.7]} 1-0

[Event "Early-Titled-Tuesday-Blitz-October-03-2023"]
[Site "Chess.com"]
[Date "2023.10.03"]
[Round "7"]
[White "Alexchess1984"]
[Black "deribas12345"]
[Result "1-0"]
[WhiteElo "2723"]
[BlackElo "2577"]
[TimeControl "180+1"]
[EndTime "9:20:22 PDT"]
[Termination "Alexchess1984 won by checkmate"]

1. e4 {[%clk 0:03:00.8]} 1... e6 {[%clk 0:02:57.9]} 2. d4 {[%clk 0:03:00.2]}
2... d5 {[%clk 0:02:58.8]} 3. Nd2 {[%clk 0:02:57.9]} 3... c5 {[%clk 0:02:57.8]}
4. c3 {[%clk 0:02:57.8]} 4... Nc6 {[%clk 0:02:54.2]} 5. Ngf3 {[%clk 0:02:57.2]}
5... Be7 {[%clk 0:02:52.6]} 6. a3 {[%clk 0:02:54.6]} 6... cxd4 {[%clk
0:02:49.1]} 7. cxd4 {[%clk 0:02:54]} 7... Nf6 {[%clk 0:02:49.7]} 8. e5 {[%clk
0:02:53.8]} 8... Ne4 {[%clk 0:02:49.8]} 9. Bd3 {[%clk 0:02:53.7]} 9... Nxd2
{[%clk 0:02:49.6]} 10. Qxd2 {[%clk 0:02:52.9]} 10... Na5 {[%clk 0:02:34.6]} 11.
Qd1 {[%clk 0:02:44.7]} 11... Qb6 {[%clk 0:02:29.3]} 12. b4 {[%clk 0:02:43.9]}
12... Nc4 {[%clk 0:02:28.3]} 13. O-O {[%clk 0:02:43.2]} 13... Bd7 {[%clk
0:02:23.3]} 14. Rb1 {[%clk 0:02:38.3]} 14... Rc8 {[%clk 0:02:21.4]} 15. h4
{[%clk 0:02:31]} 15... h6 {[%clk 0:02:20.9]} 16. h5 {[%clk 0:02:30.8]} 16... a5
{[%clk 0:01:55]} 17. bxa5 {[%clk 0:02:24.6]} 17... Qa7 {[%clk 0:01:49.8]} 18.
Bxc4 {[%clk 0:01:46.5]} 18... Rxc4 {[%clk 0:01:43.3]} 19. Bd2 {[%clk 0:01:45.5]}
19... O-O {[%clk 0:01:21.9]} 20. Bb4 {[%clk 0:01:44.3]} 20... Bxb4 {[%clk
0:01:17]} 21. axb4 {[%clk 0:01:43.3]} 21... Rfc8 {[%clk 0:01:13.3]} 22. Qd2
{[%clk 0:01:40.5]} 22... Bb5 {[%clk 0:01:09.7]} 23. Rfc1 {[%clk 0:01:37]} 23...
Qa6 {[%clk 0:01:05.3]} 24. Rxc4 {[%clk 0:01:34.3]} 24... Rxc4 {[%clk 0:01:03.8]}
25. Rc1 {[%clk 0:01:32.4]} 25... Qc6 {[%clk 0:00:55]} 26. Rxc4 {[%clk
0:01:30.9]} 26... dxc4 {[%clk 0:00:53.1]} 27. Qc3 {[%clk 0:01:28.8]} 27... Qe4
{[%clk 0:00:50.4]} 28. Ne1 {[%clk 0:01:17.5]} 28... Qf5 {[%clk 0:00:41.4]} 29.
Nc2 {[%clk 0:01:11.6]} 29... Qxh5 {[%clk 0:00:40.7]} 30. Ne3 {[%clk 0:01:12]}
30... Qe2 {[%clk 0:00:39.7]} 31. f3 {[%clk 0:00:36.3]} 31... h5 {[%clk
0:00:38.4]} 32. Kh2 {[%clk 0:00:35.6]} 32... g6 {[%clk 0:00:38.5]} 33. Kg3
{[%clk 0:00:30.5]} 33... g5 {[%clk 0:00:36.6]} 34. d5 {[%clk 0:00:22.8]} 34...
exd5 {[%clk 0:00:34.3]} 35. Nxd5 {[%clk 0:00:22.7]} 35... h4+ {[%clk 0:00:33.8]}
36. Kg4 {[%clk 0:00:16.9]} 36... Qxg2+ {[%clk 0:00:32.4]} 37. Kh5 {[%clk
0:00:15.4]} 37... h3 {[%clk 0:00:19.4]} 38. e6 {[%clk 0:00:15.5]} 38... h2
{[%clk 0:00:14.6]} 39. exf7+ {[%clk 0:00:13]} 39... Kh7 {[%clk 0:00:04.7]} 40.
Nf6+ {[%clk 0:00:10.6]} 40... Kg7 {[%clk 0:00:04.7]} 41. Nd5+ {[%clk 0:00:06.5]}
41... Kh7 {[%clk 0:00:04.9]} 42. Qh8+ {[%clk 0:00:01.1]} 42... Kxh8 {[%clk
0:00:04.4]} 43. f8=Q+ {[%clk 0:00:02]} 43... Kh7 {[%clk 0:00:04.5]} 44. Nf6#
{[%clk 0:00:02]} 1-0

[Event "Early-Titled-Tuesday-Blitz-October-03-2023"]
[Site "Chess.com"]
[Date "2023.10.03"]
[Round "7"]
[White "Roedor"]
[Black "MathiasWomacka"]
[Result "1-0"]
[WhiteElo "2404"]
[BlackElo "2545"]
[TimeControl "180+1"]
[EndTime "9:20:22 PDT"]
[Termination "Roedor won on time"]

1. d4 {[%clk 0:02:56.8]} 1... Nf6 {[%clk 0:02:59.1]} 2. c4 {[%clk 0:02:56.5]}
2... e6 {[%clk 0:02:59.6]} 3. g3 {[%clk 0:02:56]} 3... c5 {[%clk 0:02:58.8]} 4.
d5 {[%clk 0:02:55.4]} 4... exd5 {[%clk 0:02:59.7]} 5. cxd5 {[%clk 0:02:56.3]}
5... d6 {[%clk 0:03:00.1]} 6. Nc3 {[%clk 0:02:56.8]} 6... g6 {[%clk 0:03:00.6]}
7. Bg2 {[%clk 0:02:57.3]} 7... Bg7 {[%clk 0:03:01.1]} 8. Nf3 {[%clk 0:02:57.9]}
8... O-O {[%clk 0:03:01.3]} 9. O-O {[%clk 0:02:58.5]} 9... Nbd7 {[%clk
0:03:00.8]} 10. Bf4 {[%clk 0:02:57.1]} 10... Qe7 {[%clk 0:03:00.6]} 11. Nd2
{[%clk 0:02:51.5]} 11... Nh5 {[%clk 0:02:41.6]} 12. Be3 {[%clk 0:02:49.9]} 12...
a6 {[%clk 0:02:30.9]} 13. a4 {[%clk 0:02:49.5]} 13... Rb8 {[%clk 0:02:31]} 14.
Nc4 {[%clk 0:02:46.4]} 14... Ne5 {[%clk 0:02:26.8]} 15. Na3 {[%clk 0:02:43.1]}
15... Bd7 {[%clk 0:02:23.1]} 16. a5 {[%clk 0:02:33.9]} 16... b5 {[%clk
0:02:15.6]} 17. axb6 {[%clk 0:02:34]} 17... Rxb6 {[%clk 0:02:16.1]} 18. Qc1
{[%clk 0:02:34.6]} 18... Rfb8 {[%clk 0:02:11.7]} 19. Ra2 {[%clk 0:02:28.3]}
19... Nf6 {[%clk 0:01:58]} 20. Bg5 {[%clk 0:02:24.8]} 20... h6 {[%clk
0:01:40.8]} 21. Bxh6 {[%clk 0:02:22.9]} 21... Bxh6 {[%clk 0:01:41.7]} 22. Qxh6
{[%clk 0:02:23.1]} 22... Rxb2 {[%clk 0:01:42.1]} 23. Rxb2 {[%clk 0:02:23.7]}
23... Rxb2 {[%clk 0:01:42.3]} 24. h3 {[%clk 0:02:10.8]} 24... Rb3 {[%clk
0:01:30.7]} 25. Nab1 {[%clk 0:02:03.8]} 25... Bb5 {[%clk 0:01:24.6]} 26. Re1
{[%clk 0:01:47.8]} 26... Nd3 {[%clk 0:01:05.3]} 27. Rd1 {[%clk 0:01:24]} 27...
Nb2 {[%clk 0:01:05.2]} 28. Re1 {[%clk 0:01:22.1]} 28... Nd7 {[%clk 0:00:45.7]}
29. Ne4 {[%clk 0:01:16.1]} 29... Nc4 {[%clk 0:00:33.3]} 30. Nbd2 {[%clk
0:01:01.4]} 30... Nxd2 {[%clk 0:00:32.2]} 31. Nxd2 {[%clk 0:01:02.3]} 31... Rb2
{[%clk 0:00:32.4]} 32. Kh2 {[%clk 0:00:53.7]} 32... a5 {[%clk 0:00:21.1]} 33.
Ne4 {[%clk 0:00:45.6]} 33... Rxe2 {[%clk 0:00:20.2]} 34. Rxe2 {[%clk 0:00:44.7]}
34... Bxe2 {[%clk 0:00:21.1]} 35. Qd2 {[%clk 0:00:41.6]} 35... Bc4 {[%clk
0:00:15.5]} 36. Qxa5 {[%clk 0:00:36.2]} 36... Bxd5 {[%clk 0:00:15.4]} 37. Nf6+
{[%clk 0:00:19.2]} 37... Nxf6 {[%clk 0:00:14.7]} 38. Bxd5 {[%clk 0:00:19.5]}
38... Nxd5 {[%clk 0:00:11.3]} 39. Qa8+ {[%clk 0:00:19.4]} 39... Kg7 {[%clk
0:00:11.7]} 40. Qxd5 {[%clk 0:00:20]} 40... Qe6 {[%clk 0:00:11.2]} 41. Qd2
{[%clk 0:00:15.6]} 41... Qf6 {[%clk 0:00:08.3]} 42. f4 {[%clk 0:00:13.7]} 42...
c4 {[%clk 0:00:07.2]} 43. Kg2 {[%clk 0:00:12]} 43... c3 {[%clk 0:00:06.8]} 44.
Qd3 {[%clk 0:00:12.4]} 44... d5 {[%clk 0:00:06]} 45. Kf3 {[%clk 0:00:12.2]}
45... d4 {[%clk 0:00:04.2]} 46. g4 {[%clk 0:00:08.6]} 46... Qc6+ {[%clk
0:00:04]} 47. Ke2 {[%clk 0:00:07.8]} 47... Qc5 {[%clk 0:00:03.6]} 48. Kd1 {[%clk
0:00:07]} 48... Kf6 {[%clk 0:00:01.6]} 49. Qa6+ {[%clk 0:00:04.4]} 49... Kg7
{[%clk 0:00:01.2]} 50. Qd3 {[%clk 0:00:05.3]} 1-0